[Event "11th Arad Open 2018"]
[Site "Arad"]
[Date "2018.08.05"]
[Round "1"]
[White "Verbin, Valentina"]
[Black "Stoleriu, George"]
[Result "0-1"]
[ECO "B18"]
[WhiteElo "1838"]
[BlackElo "2392"]
[Annotator "NA"]
[PlyCount "156"]
[EventDate "2018.08.05"]
[EventType "swiss"]
[EventCountry "ROU"]
[SourceTitle "playchess.com"]
[Source "ChessBase"]
[SourceQuality "1"]
[TimeControl "40/5400+30:1800+30"]

1. e4 {[%emt 0:00:00]} c6 {[%emt 0:00:19]} 2. d4 {[%emt 0:00:00]} d5 {[%emt 0:00:04]} 3. Nc3 {[%emt 0:00:00]} dxe4 {[%emt 0:00:08]} 4. Nxe4 {[%emt 0:00:08]} Bf5 {[%emt 0:00:23]} 5. Ng3 {[%emt 0:00:11]} Bg6 {[%emt 0:00:03]} 6. h4 {[%emt 0:01:06]} h6 {[%emt 0:00:04]} 7. h5 {[%emt 0:00:24]} Bh7 {[%emt 0:00:04]} 8. Nf3 {[%emt 0:00:08]} Nd7 {[%emt 0:00:24]} 9. Bd3 {[%emt 0:00:14]} Bxd3 {[%emt 0:00:06]} 10. Qxd3 {[%emt 0:00:04]} e6 {[%emt 0:00:08]} 11. Bf4 {[%emt 0:00:44]} Qa5+ {[%emt 0:00:08]} 12. Bd2 {[%emt 0:00:09]} Qc7 {[%emt 0:00:26]} 13. O-O-O {[%emt 0:00:37]} Ngf6 {[%emt 0:00:29]} 14. Kb1 {[%emt 0:01:31]} O-O-O {[%emt 0:01:01]} 15. c4 {[%emt 0:04:42]} Bd6 {[%emt 0:07:46]} 16. Ne4 {[%emt 0:00:21]} Nxe4 {[%emt 0:00:37]} 17. Qxe4 {[%emt 0:00:06]} Nf6 {[%emt 0:00:41]} 18. Qe2 {[%emt 0:00:48]} Rhe8 {[%emt 0:04:11]} 19. Bc3 {[%emt 0:01:39]} Kb8 {[%emt 0:06:42]} 20. g3 {[%emt 0:04:20]} Ka8 {[%emt 0:06:35]} 21. Rh4 {[%emt 0:02:08]} c5 {[%emt 0:02:25]} 22. dxc5 {[%emt 0:02:29]} Bxc5 {[%emt 0:01:38]} 23. Be5 {[%emt 0:02:26]} Rxd1+ {[%emt 0:03:14]} 24. Qxd1 {[%emt 0:00:09]} Rd8 {[%emt 0:01:34]} 25. Qe2 {[%emt 0:05:27]} Qb6 {[%emt 0:02:41]} 26. Bxf6 {[%emt 0:01:09]} gxf6 {[%emt 0:00:24]} 27. Rh2 {[%emt 0:00:13]} Qd6 {[%emt 0:04:07]} 28. Kc2 {[%emt 0:04:44]} Qa6 {[%emt 0:07:09]} 29. Kb1 {[%emt 0:02:20]} Qd6 {[%emt 0:14:12]} 30. Kc2 {[%emt 0:01:18]} Qd7 {[%emt 0:00:12]} 31. Rh1 {[%emt 0:04:02]} e5 {[%emt 0:03:55]} 32. Nd2 {[%emt 0:05:23]} Bb4 {[%emt 0:08:50]} 33. Rd1 {[%emt 0:02:40]} a6 {[%emt 0:02:47]} 34. Nb3 {[%emt 0:11:24]} Qf5+ {[%emt 0:00:36]} 35. Kc1 {[%emt 0:00:31]} Qg5+ {[%emt 0:03:26]} 36. Kc2 {[%emt 0:05:20]} Qf5+ {[%emt 0:00:08]} 37. Kc1 {[%emt 0:00:05]} Rc8 {[%emt 0:00:10]} 38. a3 {[%emt 0:02:52]} Be7 {[%emt 0:05:32]} 39. Rd5 {[%emt 0:04:15]} Bd8 {[%emt 0:05:28]} 40. c5 {[%emt 0:00:00]} Be7 {[%emt 0:00:00]} 41. f4 {[%emt 0:30:40]} Qe6 {[%emt 0:17:35]} 42. Qd2 {[%emt 0:08:29]} e4 {[%emt 0:05:57]} 43. f5 {[%emt 0:01:25]} Qc6 {[%emt 0:00:04]} 44. Na5 {[%emt 0:03:19]} e3 {[%emt 0:04:58]} 45. Qd3 {[%emt 0:01:46]} e2 {[%emt 0:08:40]} 46. Kd2 {[%emt 0:01:37]} Qa4 {[%emt 0:00:28]} 47. Nb3 {[%emt 0:01:59]} Bxc5 {[%emt 0:00:39]} 48. Rd8 {[%emt 0:02:50]} Rxd8 {[%emt 0:03:40]} 49. Qxd8+ {[%emt 0:00:03]} Ka7 {[%emt 0:00:04]} 50. Qd5 {[%emt 0:00:16]} Bb6 {[%emt 0:00:20]} 51. Kxe2 {[%emt 0:01:28]} Qg4+ {[%emt 0:00:04]} 52. Qf3 {[%emt 0:00:41]} Qc4+ {[%emt 0:00:24]} 53. Qd3 {[%emt 0:00:05]} Qc6 {[%emt 0:00:19]} 54. Nd2 {[%emt 0:04:20]} Qg2+ {[%emt 0:00:47]} 55. Kd1 {[%emt 0:01:21]} Qh1+ {[%emt 0:00:16]} 56. Kc2 {[%emt 0:00:18]} Qxh5 {[%emt 0:00:06]} 57. Nc4 {[%emt 0:00:21]} Qh2+ {[%emt 0:01:31]} 58. Kb3 {[%emt 0:00:34]} Bf2 {[%emt 0:00:14]} 59. g4 {[%emt 0:04:58]} Qc7 {[%emt 0:00:52]} 60. Ka2 {[%emt 0:02:28]} Bc5 {[%emt 0:01:20]} 61. Nd2 {[%emt 0:01:15]} Bd6 {[%emt 0:01:10]} 62. Nc4 {[%emt 0:03:22]} Be5 {[%emt 0:01:08]} 63. Qe3+ {[%emt 0:00:09]} b6 {[%emt 0:00:41]} 64. Nxe5 {[%emt 0:00:45]} fxe5 {[%emt 0:00:07]} 65. Qxh6 {[%emt 0:00:07]} Qc4+ {[%emt 0:00:03]} 66. Ka1 {[%emt 0:00:55]} Qxg4 {[%emt 0:00:04]} 67. f6 {[%emt 0:00:58]} Qd1+ {[%emt 0:00:58]} 68. Ka2 {[%emt 0:00:05]} Qd5+ {[%emt 0:00:04]} 69. Ka1 {[%emt 0:00:07]} Qe6 {[%emt 0:01:04]} 70. Qh8 {[%emt 0:00:09]} Kb7 {[%emt 0:00:37]} 71. Qd8 {[%emt 0:00:21]} Kc6 {[%emt 0:00:09]} 72. Qa8+ {[%emt 0:00:34]} Kc5 {[%emt 0:01:56]} 73. Qd8 {[%emt 0:00:04]} e4 {[%emt 0:00:24]} 74. Qf8+ {[%emt 0:02:21]} Kd4 {[%emt 0:00:31]} 75. Qg7 {[%emt 0:00:38]} e3 {[%emt 0:00:11]} 76. Qg5 {[%emt 0:00:25]} Kd3 {[%emt 0:00:40]} 77. Qh4 {[%emt 0:00:35]} Qf5 {[%emt 0:01:05]} 78. Qe1 {[%emt 0:00:30]} Qxf6 {[%emt 0:00:15]} 0-1

[Event "11th Arad Open 2018"]
[Site "Arad"]
[Date "2018.08.05"]
[Round "1"]
[White "Ion, Dragos Cosmin"]
[Black "Bogdan, Dan"]
[Result "0-1"]
[ECO "B36"]
[WhiteElo "1836"]
[BlackElo "2382"]
[Annotator "NA"]
[PlyCount "76"]
[EventDate "2018.08.05"]
[EventType "swiss"]
[EventCountry "ROU"]
[SourceTitle "playchess.com"]
[Source "ChessBase"]
[SourceQuality "1"]
[TimeControl "40/5400+30:1800+30"]

1. e4 {[%emt 0:00:00]} c5 {[%emt 0:01:19]} 2. Nf3 {[%emt 0:00:00]} Nc6 {[%emt 0:00:06]} 3. d4 {[%emt 0:00:00]} cxd4 {[%emt 0:00:06]} 4. Nxd4 {[%emt 0:00:00]} g6 {[%emt 0:00:06]} 5. c4 {[%emt 0:00:00]} Nf6 {[%emt 0:00:09]} 6. Nc3 {[%emt 0:00:06]} d6 {[%emt 0:00:13]} 7. Be2 {[%emt 0:01:24]} Nxd4 {[%emt 0:02:03]} 8. Qxd4 {[%emt 0:00:05]} Bg7 {[%emt 0:00:05]} 9. Be3 {[%emt 0:01:16]} O-O {[%emt 0:01:31]} 10. Qd2 {[%emt 0:00:04]} a5 {[%emt 0:00:38]} 11. f3 {[%emt 0:01:48]} a4 {[%emt 0:01:18]} 12. O-O {[%emt 0:00:35]} Qa5 {[%emt 0:00:29]} 13. Rab1 {[%emt 0:04:29]} Be6 {[%emt 0:00:59]} 14. b4 {[%emt 0:07:07]} axb3 {[%emt 0:01:19]} 15. axb3 {[%emt 0:00:09]} Qb4 {[%emt 0:17:38]} 16. Rfd1 {[%emt 0:21:13]} Rfc8 {[%emt 0:03:08]} 17. Nb5 {[%emt 0:06:58]} Qxd2 {[%emt 0:01:56]} 18. Rxd2 {[%emt 0:00:06]} Nd7 {[%emt 0:05:55]} 19. f4 {[%emt 0:14:44]} Nc5 {[%emt 0:01:37]} 20. Bf3 {[%emt 0:00:19]} Rab8 {[%emt 0:18:09]} 21. Na7 {[%emt 0:07:06]} Rd8 {[%emt 0:01:54]} 22. g4 {[%emt 0:08:00]} Bc3 {[%emt 0:07:44]} 23. Rdd1 {[%emt 0:03:11]} Bb4 {[%emt 0:01:33]} 24. Nb5 {[%emt 0:03:33]} Bd7 {[%emt 0:00:31]} 25. Nd4 {[%emt 0:02:10]} b6 {[%emt 0:05:27]} 26. Bd2 {[%emt 0:02:30]} Bxd2 {[%emt 0:00:22]} 27. Rxd2 {[%emt 0:00:01]} e5 {[%emt 0:01:34]} 28. Ne2 {[%emt 0:00:43]} Bc6 {[%emt 0:00:24]} 29. Nc3 {[%emt 0:00:51]} exf4 {[%emt 0:05:34]} 30. Nd5 {[%emt 0:03:47]} Bxd5 {[%emt 0:01:12]} 31. Rxd5 {[%emt 0:00:11]} Kf8 {[%emt 0:01:44]} 32. b4 {[%emt 0:02:06]} Nd7 {[%emt 0:02:40]} 33. Rxd6 {[%emt 0:02:55]} Ne5 {[%emt 0:00:19]} 34. Rxd8+ {[%emt 0:00:17]} Rxd8 {[%emt 0:00:01]} 35. Be2 {[%emt 0:00:39]} Rd2 {[%emt 0:00:41]} 36. c5 {[%emt 0:02:50]} bxc5 {[%emt 0:05:20]} 37. b5 {[%emt 0:00:04]} Rxe2 {[%emt 0:00:15]} 38. b6 {[%emt 0:00:05]} Nd7 {[%emt 0:00:58]} 0-1

[Event "11th Arad Open 2018"]
[Site "Arad"]
[Date "2018.08.05"]
[Round "1"]
[White "Balan, Briana Cleopatra"]
[Black "Baratosi, Daniel"]
[Result "0-1"]
[ECO "B22"]
[WhiteElo "1821"]
[BlackElo "2371"]
[Annotator "NA"]
[PlyCount "58"]
[EventDate "2018.08.05"]
[EventType "swiss"]
[EventCountry "ROU"]
[SourceTitle "playchess.com"]
[Source "ChessBase"]
[SourceQuality "1"]
[TimeControl "40/5400+30:1800+30"]

1. e4 {[%emt 0:00:00]} c5 {[%emt 0:00:53]} 2. c3 {[%emt 0:00:00]} Nf6 {[%emt 0:01:36]} 3. e5 {[%emt 0:00:00]} Nd5 {[%emt 0:00:05]} 4. d4 {[%emt 0:00:00]} cxd4 {[%emt 0:00:06]} 5. cxd4 {[%emt 0:00:00]} e6 {[%emt 0:00:17]} 6. Nf3 {[%emt 0:00:15]} b6 {[%emt 0:01:26]} 7. Bc4 {[%emt 0:00:29]} Bb7 {[%emt 0:02:37]} 8. O-O {[%emt 0:00:42]} h6 {[%emt 0:24:35]} 9. Nbd2 {[%emt 0:03:28]} Qc7 {[%emt 0:02:10]} 10. a3 {[%emt 0:03:51]} g5 {[%emt 0:08:41]} 11. h3 {[%emt 0:06:47]} Rg8 {[%emt 0:03:45]} 12. Nh2 {[%emt 0:02:01]} d6 {[%emt 0:00:28]} 13. Ng4 {[%emt 0:06:59]} Nd7 {[%emt 0:00:41]} 14. exd6 {[%emt 0:05:11]} Bxd6 {[%emt 0:03:47]} 15. Ne4 {[%emt 0:11:55]} Be7 {[%emt 0:03:16]} 16. Bxd5 Bxd5 {[%emt 0:02:05]} 17. Nc3 {[%emt 0:12:50]} Bb7 {[%emt 0:02:31]} 18. d5 {[%emt 0:06:34]} Rg6 {[%emt 0:16:29]} 19. Re1 {[%emt 0:04:53]} a6 {[%emt 0:10:38]} 20. f3 {[%emt 0:17:24]} h5 {[%emt 0:02:51]} 21. Nf2 {[%emt 0:02:05]} Rd8 {[%emt 0:05:46]} 22. Nfe4 {[%emt 0:10:31]} Ne5 {[%emt 0:02:21]} 23. Qe2 {[%emt 0:03:33]} g4 {[%emt 0:00:09]} 24. hxg4 {[%emt 0:00:51]} hxg4 {[%emt 0:00:06]} 25. f4 {[%emt 0:00:34]} Nf3+ {[%emt 0:00:11]} 26. Kf1 {[%emt 0:00:43]} Nxe1 {[%emt 0:00:34]} 27. Qxe1 {[%emt 0:00:24]} Bxd5 {[%emt 0:03:06]} 28. Be3 {[%emt 0:01:14]} Bxe4 {[%emt 0:00:13]} 29. Nxe4 {[%emt 0:00:10]} Qc4+ {[%emt 0:00:04]} 0-1